Cogmind - Beta 10.2 @@@ ROGUE MODE // 2021.08.23 @ 13:03:24 Player: sentrybuster Result: Self-destructed Performance ------------- Evolutions (2) 1000 Regions Visited (7) 1400 Robots Destroyed (11) 55 Value Destroyed (176) 176 Prototype IDs (1) 20 Alien Tech Used (0) 0 Bonus (33) 33 TOTAL SCORE: 2684 Bonus ------- Follower Combat Kills 33 Cogmind --------- Core Integrity 534/550 Matter 250/300 Energy 265/400 System Corruption 0% Temperature Cool (1) Movement Flying (35) Location -8/Materials Parts ------- > --- POWER (1) -------- (None) > --- PROPULSION (3) --- Improved VTOL Module > --- UTILITY (5) ------ Large Battery Structural Scanner Advanced Targeting Computer > --- WEAPON (2) ------- Assault Rifle > --- INVENTORY (4) ---- Large Matter Pod (140) Hardened Light Armor Plating Heavy Particle Cannon Advanced Assault Cannon Peak State ------------ > --- POWER ------------ Ion Engine > --- PROPULSION ------- Aluminum Leg Aluminum Leg > --- UTILITY ---------- Heat Sink Small Storage Unit Advanced Targeting Computer > --- WEAPON ----------- Beamcaster > --- INVENTORY -------- Light Ion Engine Hover Unit Hover Unit Large Battery Sensor Array [Rating: 13] Favorites ----------- Power Ion Engine Engine Ion Engine Propulsion Aluminum Leg Leg Aluminum Leg Hover Unit Hover Unit Flight Unit Flight Unit Utility Small Storage Unit Device Structural Scanner Storage Small Storage Unit Processor Advanced Targeting Computer Weapon Medium Laser Energy Gun Medium Laser Energy Cannon Beam Cannon Ballistic Gun Assault Rifle Launcher EMP Blaster Build | -11 -10 -10 -9 -9 -9 -8 -8 ------- Run | Scr Mat Min Mat Min Exi Min Mat Slots Evolved 4 | . . . 2 . . . 2 Power . | . . . . . . . . Propulsion 1 | . . . 1 . . . . Utility 3 | . . . 1 . . . 2 Weapon . | . . . . . . . . Parts Attached 23 | 6 3 2 4 3 . 3 2 Power 3 | 1 1 . . 1 . . . Engine 3 | 1 1 . . 1 . . . Core . | . . . . . . . . Reactor . | . . . . . . . . Propulsion 5 | 2 . . . 1 . 1 1 Treads . | . . . . . . . . Leg 2 | 2 . . . . . . . Wheel . | . . . . . . . . Hover 1 | . . . . 1 . . . Flight 2 | . . . . . . 1 1 Utility 8 | 1 2 1 2 1 . . 1 Device 3 | . . 1 1 1 . . . Storage 4 | 1 2 . . . . . 1 Processor 1 | . . . 1 . . . . Hackware . | . . . . . . . . Protection . | . . . . . . . . Artifact . | . . . . . . . . Weapon 7 | 2 . 1 2 . . 2 . Energy Gun 3 | 2 . . 1 . . . . Energy Cannon 1 | . . 1 . . . . . Ballistic Gun 2 | . . . 1 . . 1 . Ballistic Cannon . | . . . . . . . . Launcher 1 | . . . . . . 1 . Special Weapon . | . . . . . . . . Impact Weapon . | . . . . . . . . Slashing Weapon . | . . . . . . . . Piercing Weapon . | . . . . . . . . Special Melee Weapon . | . . . . . . . . Unidentified Prototypes 1 | . . . . . . . 1 Parts Lost 10 | . . . 8 . . 1 1 Power 1 | . . . 1 . . . . Propulsion 4 | . . . 2 . . 1 1 Utility 2 | . . . 2 . . . . Weapon 3 | . . . 3 . . . . Highest Loss Streak 8 | . . . 8 . . 1 1 Average Slot Usage (%) 78 | . 99 98 76 47 55 36 50 Engine 11 | . 14 14 9 11 11 3 . Leg 16 | . 28 28 19 . . . . Hover 3 | . . . . 11 11 3 . Device 5 | . . 7 8 3 11 11 9 Storage 13 | . 27 20 9 . . . 7 Processor 5 | . . . 10 11 11 11 9 Energy Gun 12 | . 28 14 8 . . . . Energy Cannon 3 | . . 12 7 . . . . Ballistic Gun 3 | . . . 1 11 11 3 9 Naked Turns . | . . . . . . . . Heaviest Build 17 | 10 15 17 15 6 6 6 6 Greatest Support 20 | 20 20 20 20 6 6 6 10 Greatest Overweight (x) . | . . . . . . . . Average Overweight (x) . | . . . . . . . . Largest Inventory Capacity 6 | 6 6 6 6 4 4 4 4 Average Capacity 5 | 5 6 6 5 4 4 4 4 Most Carried 6 | 4 6 6 6 4 4 4 4 Average Carried 4 | 2 5 5 5 2 3 3 3 Final Capacity 6 | 6 6 6 4 4 4 4 4 Final Carried 6 | 4 6 6 4 4 4 3 4 Class Distribution -------------------- 100% | Mutant Dominant Class ---------------- Mutant | -10/Materials Mutant | -10/Mines Mutant | -9/Materials Mutant | -9/Mines Mutant | -9/Exiles Mutant | -8/Mines Mutant | -8/Materials Resources | -11 -10 -10 -9 -9 -9 -8 -8 ----------- Run | Scr Mat Min Mat Min Exi Min Mat Matter Collected 373 | 199 71 40 20 20 10 13 . Remotely . | . . . . . . . . Salvage Created 363 | . 103 91 143 . . 26 . Parts 22 | . 6 4 7 . . 5 . Haulers Intercepted 1 | . 1 . . . . . . Recyclers Shooed 1 | . . . 1 . . . . Parts Field Recycled . | . . . . . . . . Retrieved Matter . | . . . . . . . . Parts Self-Destructed . | . . . . . . . . Prevented . | . . . . . . . . Kills | -11 -10 -10 -9 -9 -9 -8 -8 ------- Run | Scr Mat Min Mat Min Exi Min Mat Combat Hostiles Destroyed 8 | . 1 2 3 . . 2 . Guns 6 | . . 1 3 . . 2 . Cannons 1 | . . 1 . . . . . Classes Destroyed 5 | . 3 . 2 . . . . Hauler 1 | . 1 . . . . . . Recycler 1 | . . . 1 . . . . Watcher 1 | . 1 . . . . . . Swarmer 5 | . . . 3 . . 2 . Grunt 3 | . 1 2 . . . . . Best Kill Streak 2 | . 2 2 2 . . 2 . Combat Bots Only 2 | . 1 2 2 . . 2 . Max Kills in Single Turn 1 | . 1 1 1 . . 1 . Gunslinging . | . . . . . . . . Exploded . | . . . . . . . . Melee . | . . . . . . . . Uniques/NPCs Destroyed . | . . . . . . . . Combat | -11 -10 -10 -9 -9 -9 -8 -8 -------- Run | Scr Mat Min Mat Min Exi Min Mat Damage Taken 962 | . 78 . 654 . . 179 51 Core 285 | . . . 182 . . 87 16 Absorbed by Shields . | . . . . . . . . Core Remaining (%) 77 | 100 . 100 . . . 32 . Volleys Fired 41 | . 12 6 16 . . 4 3 Largest 2 | . 2 2 2 . . 1 1 Hottest 110 | . 90 110 110 . . 33 20 Shots Fired 65 | . 24 12 22 . . 4 3 Gun 49 | . 24 6 14 . . 2 3 Cannon 14 | . . 6 8 . . . . Launcher 2 | . . . . . . 2 . Special . | . . . . . . . . Kinetic 5 | . . . . . . 2 3 Thermal 58 | . 24 12 22 . . . . Explosive . | . . . . . . . . Electromagnetic 2 | . . . . . . 2 . Robot Hit Streak 7 | . 6 4 7 . . 3 4 Robot Miss Streak 4 | . 4 3 2 . . . 2 Penetration Max . | . . . . . . . . Secondary Targets . | . . . . . . . . Shots Hit Robots 42 | . 15 7 16 . . 3 1 Core Hits 15 | . 4 3 5 . . 3 . Critical Hits . | . . . . . . . . Critical Kills . | . . . . . . . . Critical Parts Destroyed . | . . . . . . . . Melee Attacks . | . . . . . . . . Impact . | . . . . . . . . Slashing . | . . . . . . . . Piercing . | . . . . . . . . Sneak Attacks . | . . . . . . . . Combat Hostiles . | . . . . . . . . Follow-up Attacks . | . . . . . . . . Damage Inflicted 771 | . 228 120 296 . . 115 12 Guns 488 | . 228 51 173 . . 24 12 Cannons 191 | . . 69 122 . . . . Explosions 91 | . . . . . . 91 . Melee . | . . . . . . . . Ramming 1 | . . . 1 . . . . Kinetic 36 | . . . . . . 24 12 Thermal 643 | . 228 120 295 . . . . Explosive . | . . . . . . . . Electromagnetic 91 | . . . . . . 91 . Impact . | . . . . . . . . Slashing . | . . . . . . . . Piercing . | . . . . . . . . Highest Corruption . | . . . . . . . . Average Corruption . | . . . . . . . . Corruption Purged . | . . . . . . . . Overload Shots . | . . . . . . . . Overflow Damage . | . . . . . . . . Projectiles . | . . . . . . . . Explosions . | . . . . . . . . Melee . | . . . . . . . . Knockbacks . | . . . . . . . . Impact . | . . . . . . . . Kinetic . | . . . . . . . . Secondary . | . . . . . . . . Self-Inflicted Damage . | . . . . . . . . Shots . | . . . . . . . . Rammed 1 | . . . 1 . . . . Targets Rammed 1 | . . . 1 . . . . Kicked . | . . . . . . . . Crushed . | . . . . . . . . Highest Temperature 240 | . 240 172 164 . . 6 . Average Temperature 78 | . 114 70 49 . . 3 . Received Heat Transfer 231 | . 42 . 117 . . 72 . Siege Activations . | . . . . . . . . Robots Corrupted . | . . . . . . . . Combat Hostiles . | . . . . . . . . Parts Fried . | . . . . . . . . Impact Corruptions . | . . . . . . . . Robots Melted 1 | . 1 . . . . . . Combat Hostiles 1 | . 1 . . . . . . Parts Melted 3 | . 2 . 1 . . . . Heat Transferred 1520 | . 595 296 629 . . . . Parts Sabotaged . | . . . . . . . . Parts Stolen . | . . . . . . . . Parts Stripped . | . . . . . . . . Power Chain Reactions . | . . . . . . . . Missiles Intercepted . | . . . . . . . . Alert | -11 -10 -10 -9 -9 -9 -8 -8 ------- Run | Scr Mat Min Mat Min Exi Min Mat Peak Influence 155 | . 89 84 155 46 . 110 92 Initial 46 | . . 34 32 46 . . 42 Average 47 | . 34 53 90 46 . 34 49 Maximum Alert Level . | . . . . . . . . Low Security (%) 100 | 100 100 100 100 100 . 100 100 Level 1 . | . . . . . . . . Level 2 . | . . . . . . . . Level 3 . | . . . . . . . . Level 4 . | . . . . . . . . Level 5 . | . . . . . . . . High Security . | . . . . . . . . Max Security . | . . . . . . . . Squads Dispatched 3 | . 1 1 1 . . . . Investigation 1 | . . 1 . . . . . Extermination . | . . . . . . . . Reinforcement 2 | . 1 . 1 . . . . Assault . | . . . . . . . . Garrison . | . . . . . . . . Intercept . | . . . . . . . . Construction Impeded . | . . . . . . . . Haulers Reinforced . | . . . . . . . . Stealth | -11 -10 -10 -9 -9 -9 -8 -8 --------- Run | Scr Mat Min Mat Min Exi Min Mat Distress Signals 1 | . 1 . . . . . . Communications Jammed . | . . . . . . . . Distress Signals . | . . . . . . . . Times Spotted 26 | . 3 2 8 . . 6 7 Peak Tracking Total 5 | . 2 1 4 . . 4 5 Tactical Retreats 5 | . 1 . 1 . . 2 1 Traps | -11 -10 -10 -9 -9 -9 -8 -8 ------- Run | Scr Mat Min Mat Min Exi Min Mat Traps Triggered . | . . . . . . . . Indirectly . | . . . . . . . . Trap Hack Attempts . | . . . . . . . . Triggered . | . . . . . . . . Disarmed . | . . . . . . . . Reprogrammed . | . . . . . . . . Reused . | . . . . . . . . Traps Extracted . | . . . . . . . . Installed . | . . . . . . . . Triggered . | . . . . . . . . Machines | -11 -10 -10 -9 -9 -9 -8 -8 ---------- Run | Scr Mat Min Mat Min Exi Min Mat Machines Disabled . | . . . . . . . . Max in Single Turn . | . . . . . . . . Machines Sabotaged . | . . . . . . . . Garrisons Compromised . | . . . . . . . . Overloaded Fab Kills . | . . . . . . . . Fab Network Shutdowns . | . . . . . . . . Hacking | -11 -10 -10 -9 -9 -9 -8 -8 --------- Run | Scr Mat Min Mat Min Exi Min Mat Machines Accessed 9 | . 3 1 1 . 3 . 1 Terminals 4 | . 2 . 1 . . . 1 Fabricators . | . . . . . . . . Repair Stations . | . . . . . . . . Recycling Units 1 | . 1 . . . . . . Scanalyzers . | . . . . . . . . Garrison Access . | . . . . . . . . Total Hacks 14 | . 5 1 4 . 3 . 1 Successful 12 | . 4 1 3 . 3 . 1 Failed 2 | . 1 . 1 . . . . Catastrophic . | . . . . . . . . Database Lockouts . | . . . . . . . . Manual 7 | . 4 . 3 . . . . Terminals 9 | . 4 . 4 . . . 1 Fabricators . | . . . . . . . . Repair Stations . | . . . . . . . . Recycling Units 1 | . 1 . . . . . . Scanalyzers . | . . . . . . . . Garrison Access . | . . . . . . . . Terminal Hacks 6 | . . 1 1 . 3 . 1 Record 3 | . . . . . 3 . . Open Door 1 | . . 1 . . . . . Alert Level 1 | . . . . . . . 1 Zone Layout 1 | . . . 1 . . . . Fabricator Hacks . | . . . . . . . . Repair Station Hacks . | . . . . . . . . Recycling Unit Hacks 1 | . 1 . . . . . . Retrieve Components 1 | . 1 . . . . . . Scanalyzer . | . . . . . . . . Garrison Access Hacks . | . . . . . . . . Unauthorized Hacks 5 | . 3 . 2 . . . . Terminals 5 | . 3 . 2 . . . . Track 3 | . 2 . 1 . . . . Botnet 2 | . 1 . 1 . . . . Fabricators . | . . . . . . . . Repair Stations . | . . . . . . . . Recycling Units . | . . . . . . . . Scanalyzers . | . . . . . . . . Garrison Access . | . . . . . . . . Data Cores Recovered . | . . . . . . . . Used . | . . . . . . . . Hacking Detections 3 | . 2 . 1 . . . . Full Trace Events . | . . . . . . . . Feedback Events . | . . . . . . . . Feedback Blocked . | . . . . . . . . Robot Schematics Acquired . | . . . . . . . . Robots Built . | . . . . . . . . Matter . | . . . . . . . . Time . | . . . . . . . . Total Robot Build Rating . | . . . . . . . . Part Schematics Acquired . | . . . . . . . . Parts Built . | . . . . . . . . Matter . | . . . . . . . . Time . | . . . . . . . . Total Part Build Rating . | . . . . . . . . Parts Repaired . | . . . . . . . . Time . | . . . . . . . . Parts Recycled . | . . . . . . . . Recycled Matter . | . . . . . . . . Retrieved Matter . | . . . . . . . . Retrieved Components 1 | . 1 . . . . . . Parts Scanalyzed . | . . . . . . . . Part Schematics Acquired . | . . . . . . . . Parts Damaged . | . . . . . . . . Bothacking | -11 -10 -10 -9 -9 -9 -8 -8 ------------ Run | Scr Mat Min Mat Min Exi Min Mat Used RIF Installer . | . . . . . . . . Robots Hacked . | . . . . . . . . Non-combat . | . . . . . . . . Combat . | . . . . . . . . Robot Hacks Applied . | . . . . . . . . Relay Couplers Released . | . . . . . . . . Robots Rewired . | . . . . . . . . Allies Hacked . | . . . . . . . . Hacks Repelled . | . . . . . . . . Allies | -11 -10 -10 -9 -9 -9 -8 -8 -------- Run | Scr Mat Min Mat Min Exi Min Mat Total Allies 1 | . . 1 . . . . . Largest Group 1 | . . . 1 . . . . Highest-Rated Group 31 | . . . 31 . . . . Highest-Rated Ally 31 | . . . 31 . . . . Total Orders . | . . . . . . . . Ally Attacks 4 | . . . 4 . . . . Total Damage 61 | . . . 61 . . . . Kills 1 | . . . 1 . . . . Allies Corrupted . | . . . . . . . . Allies Melted . | . . . . . . . . Intel | -11 -10 -10 -9 -9 -9 -8 -8 ------- Run | Scr Mat Min Mat Min Exi Min Mat Robot Analysis Total . | . . . . . . . . Derelict Logs Recovered 1 | . . . . 1 . . . Drone Launches . | . . . . . . . . Drone Recoveries . | . . . . . . . . Exploration | -11 -10 -10 -9 -9 -9 -8 -8 ------------- Run | Scr Mat Min Mat Min Exi Min Mat Turns Passed 971 | 60 304 132 153 65 176 37 44 Spaces Moved 969 | 40 215 85 98 99 289 47 96 Core 50 | 1 . . 17 . . 32 . Treads . | . . . . . . . . Legs 420 | 39 215 85 81 . . . . Wheels . | . . . . . . . . Hover 394 | . . . . 99 289 6 . Flight 105 | . . . . . . 9 96 Fastest Speed 34 | 50 120 120 50 60 60 40 34 Average Speed 82 | 118 120 120 107 60 60 49 34 Slowest Speed 120 | 120 120 120 120 60 60 60 40 Overloaded Moves . | . . . . . . . . Propulsion Burnouts . | . . . . . . . . Robots Hopped 1 | . . . . . . 1 . Cave-ins Triggered . | . . . . . . . . Exploration Rate (%) 25 | 5 37 26 15 30 62 15 14 Regions Visited 7 Branch Regions 4 Pre-discovered Areas . | . . . . . . . . Known Exits Taken . | . . . . . . . . Unknown Exits Taken 7 | 1 1 1 1 1 1 1 . Scrap Searched 2 | . . 1 . 1 . . . Spaces Dug . | . . . . . . . . Terrain Destroyed . | . . . . . . . . Melee . | . . . . . . . . Projectile . | . . . . . . . . AOE . | . . . . . . . . Terrain Rammed . | . . . . . . . . Walls Destroyed . | . . . . . . . . Machines Disabled . | . . . . . . . . Actions | -11 -10 -10 -9 -9 -9 -8 -8 --------- Run | Scr Mat Min Mat Min Exi Min Mat Total 1064 | 49 237 103 122 103 292 55 103 Wait 11 | . 2 6 2 . . 1 . Move 960 | 39 214 84 97 98 288 44 96 Hop 1 | . . . . . . 1 . Pick Up 17 | 4 4 2 1 2 2 . 2 Fast Attach 13 | 6 1 1 2 1 . 1 1 Attach 7 | . 1 . 2 2 . 1 1 Detach . | . . . . . . . . Swap 3 | . 1 1 . . . 1 . Drop 10 | . 2 3 1 . 2 2 . Fire 41 | . 12 6 16 . . 4 3 Melee . | . . . . . . . . Ram . | . . . . . . . . Kick 1 | . . . 1 . . . . Crush . | . . . . . . . . Escape Stasis . | . . . . . . . . Rewire . | . . . . . . . . Trap . | . . . . . . . . Miscellaneous . | . . . . . . . . Route ------- -11/Scrapyard -10/Materials -10/Mines -9/Materials -9/Mines -9/Exiles -8/Mines -8/Materials History --------- Turn | Location | Event 9 | -11/Scrapyard | Discovered new exit (range 15) 61 | -11/Scrapyard | Entered Materials 301 | -10/Materials | Build established: Mutant 353 | -10/Materials | Discovered new exit (range 7) 365 | -10/Materials | Entered Mines 415 | -10/Mines | Met a Derelict shopkeep closing up shop 487 | -10/Mines | Discovered new exit (range 9) 493 | -10/Mines | Received a Mining Laser from a helpful Derelict 497 | -10/Mines | Entered Materials 497 | -9/Materials | Accompanied by 1 ally 497 | -9/Materials | Evolved 2 slots: Propulsion x1, Utility x1 646 | -9/Materials | Discovered new exit (range 9) 650 | -9/Materials | Entered Mines 663 | -9/Mines | Learned Materials terminal intel 673 | -9/Mines | Lost 8 parts (1p2n2u3w) 712 | -9/Mines | Deemed a non-threat by the Exiles lab entrance 712 | -9/Mines | Discovered new exit (range 5) 715 | -9/Mines | Entered Exiles 715 | -9/Exiles | Found Exiles lab abandoned 862 | -9/Exiles | Discovered new exit (range 11) 891 | -9/Exiles | Entered Mines 894 | -8/Mines | Core integrity fell below 50% 927 | -8/Mines | Discovered new exit (range 3) 928 | -8/Mines | Entered Materials 928 | -8/Materials | Evolved 2 slots: Utility x2 929 | -8/Materials | Loaded intel: 12 terminal locations 972 | -8/Materials | Self-destructed Last Messages --------------- 00924_ Acquired Flight Unit. 00924_ K-01 Serf collects debris. 00926_ Acquired 13 matter. 00927_ EXIT=FOUND PARAMETERS=UTILITY_2 LOCATION=UNKNOWN GOAL=ESCAPE Loading Materials terminal intel (x12)... 00931_ Acquired Prototype Flight Unit. 00931_ Identified Imp. VTOL Module. 00934_ Acquired Hvy. Particle Cannon. 00940_ K-01 Serf collects debris. 00949_ Acquired Adv. Assault Cannon. 00954_ K-01 Serf collects debris. 00970_ Flight Unit destroyed. 00972_ Connecting with Terminal... 00972_ Current location identified: Materials >>Alert(Check) Current Alert Level: Low Security 00972_ Connecting with Terminal... Map ----- +----------------------------------------------------+ | | | | | | | | | | | ???????????????????????????????????????????? | | ???????????????????????????????????????????? | | ???????????????????????????????????????????? | | ???????????????????????????????????????????? | | ???????????????????????????????????????????? | | ???????????????????????????????????????????? | | ???????????????????????????????????????????? | | ???????????????????????????????????????????? | | ???????????????????????????????????????????? | | ???????????????????????????????????????????? | | ???????????????????????????????????????????? | | ???????????????????????????????????????????? | | ???????????????????????????????????????????? | | ???????????????????????????????????????????? | | ???????????????????????????????????????????? | | ???????????????????????????????????????????? | | ????????????????###+#########??????????????? | | ?????????+ ##### # #??????????????? | | ?????????# # ]!!#??????????????? | | ??????????? T + ]!!##?????????????? | | ????????????????# @ # !! ??????????????? | | ????????????????## ##! ????????????????? | | ?????????????????# ## ??????????????????? | | ?????????????????+ ##+##################### | | ?????????????????# | | ?????????????????# w | | ?????????????????# #######+############ # | | ?????????????????# #???? ?????????# # | | ?????????????????# #??# ! """ ???????# # | | ?????????????????# #??# """ #??????# # | | ?????????????????# #??#! """ #??????# # | | ?????????????????u ??# #??????# # | | ????????????????? ??# """ #??????# # | | ????????????????# T ??+ ] ""?????????# # | | ????????????????# ??# "??????????# # | | ????????????????## #??# ! ??????????# # | | ?????????????????? ???######??????????# # | | ?????????????????? ????# ???????????# # | | ?????????????????? ????? T ???????????# # | | ???????????????????????? ""?????????# # | | ?????????????????????????= """ ???????# # | | ????????????????????????? ???????# # | | ?????????????????????????? """????????# # | | ?????????????????????????? """?######?# # | | ??????????????????????????? """?# #?# # | +----------------------------------------------------+ Best States ------------- Heat Dissipation 38 Energy Generation 10 Energy Capacity 550 Matter Stores 300 Matter Capacity 300 Sight Range 16 Terrain Scan Density 10 Evasion (%) 63 Targeting Accuracy 8 Item Schematics ----------------- None Robot Schematics ------------------ None Fabricated ------------ Nothing Alien Tech Used ----------------- None Achievements -------------- None Challenges ------------ None Game ------ Seed SystemRecoilPrototype Manual? 0 Play Time 00:12:04 Cumulative 301.1 hours Start 2021.08.23 @ 12:44:41 End 2021.08.23 @ 13:03:24 Sessions 1 Manual Loads 0 Difficulty Rogue Special Mode None Game No. 389 Rogue 385 Adventurer 0 Explorer 4 Win Type - Total 5 Types 4/0/0/1/0/0/0/0/0 Lore% 81 Gallery% 90 Achievement% 63 Wizard Run 0 Options --------- ASCII 1 Keyboard 1 Movement Numpad Keybinds 0 Fullscreen 2 Font 18/Terminus Map View 76x50 Tactical HUD 1 Map Filters NONE Filters NONE Steam 1 RUN: 012fd953-930f-4549-bc01-583b10a699c2